[Event "EIWCC 2018"]
[Site "Vysoke Tatry"]
[Date "2018.04.10"]
[Round "3"]
[White "Doluhanova, Evgeniya"]
[Black "Batyte, Daiva"]
[Result "1/2-1/2"]
[ECO "A45"]
[WhiteElo "2304"]
[BlackElo "2165"]
[Annotator "NA"]
[PlyCount "73"]
[EventDate "2018.??.??"]
[EventType "swiss"]
[EventCountry "SVK"]
[SourceTitle "playchess.com"]
[Source "ChessBase"]
[SourceQuality "1"]
[TimeControl "40/5400+30:1800+30"]

1. d4 {[%emt 0:00:00]} Nf6 {[%emt 0:00:06]} 2. Bf4 {[%emt 0:00:00]} c5 {[%emt 0:03:15]} 3. e3 {[%emt 0:00:27]} g6 {[%emt 0:04:34]} 4. Nf3 {[%emt 0:01:41]} Bg7 {[%emt 0:02:27]} 5. Be2 {[%emt 0:00:23]} d6 {[%emt 0:03:46]} 6. h3 {[%emt 0:03:44]} Qb6 {[%emt 0:08:38]} 7. b3 {[%emt 0:29:11]} Nc6 {[%emt 0:23:54]} 8. c3 {[%emt 0:04:18]} Nd5 {[%emt 0:09:46]} 9. Bg3 {[%emt 0:02:45]} Qa5 {[%emt 0:04:40]} 10. O-O {[%emt 0:22:00]} cxd4 {[%emt 0:01:05]} 11. cxd4 {[%emt 0:21:22]} O-O {[%emt 0:03:44]} 12. Bc4 {[%emt 0:03:23]} Nb6 {[%emt 0:01:21]} 13. Nbd2 {[%emt 0:01:00]} d5 {[%emt 0:08:08]} 14. Be2 {[%emt 0:00:27]} Nd7 {[%emt 0:00:35]} 15. a3 {[%emt 0:00:38]} a6 {[%emt 0:00:24]} 16. b4 {[%emt 0:00:19]} Qd8 {[%emt 0:01:11]} 17. Rc1 {[%emt 0:00:22]} e5 {[%emt 0:03:18]} 18. dxe5 {[%emt 0:01:17]} Ndxe5 {[%emt 0:00:18]} 19. Nxe5 {[%emt 0:00:06]} Nxe5 {[%emt 0:00:50]} 20. e4 {[%emt 0:05:06]} d4 {[%emt 0:01:31]} 21. f4 {[%emt 0:01:14]} d3 {[%emt 0:01:33]} 22. fxe5 {[%emt 0:00:36]} dxe2 {[%emt 0:00:07]} 23. Qxe2 {[%emt 0:00:02]} Bd7 {[%emt 0:01:13]} 24. Qe3 {[%emt 0:00:35]} Bb5 {[%emt 0:00:56]} 25. Rfd1 {[%emt 0:00:14]} Ba4 {[%emt 0:02:03]} 26. Re1 {[%emt 0:00:25]} Re8 {[%emt 0:00:21]} 27. Nc4 {[%emt 0:00:48]} Re6 {[%emt 0:01:29]} 28. Nb2 {[%emt 0:00:55]} Bc6 {[%emt 0:00:42]} 29. Nd3 {[%emt 0:00:26]} b6 {[%emt 0:00:57]} 30. Red1 {[%emt 0:00:35]} Qe8 {[%emt 0:00:14]} 31. Kh1 {[%emt 0:00:33]} Bb5 {[%emt 0:00:16]} 32. Rc3 {[%emt 0:00:24]} Rd8 {[%emt 0:00:52]} 33. Rdc1 {[%emt 0:00:31]} Bxd3 {[%emt 0:01:43]} 34. Rxd3 {[%emt 0:00:03]} Bxe5 {[%emt 0:00:22]} 35. Bxe5 {[%emt 0:00:52]} Rxe5 {[%emt 0:00:14]} 36. Rxd8 {[%emt 0:00:28]} Qxd8 {[%emt 0:00:03]} 37. Qf4 {[%emt 0:00:47]} 1/2-1/2

[Event "EIWCC 2018"]
[Site "Vysoke Tatry"]
[Date "2018.04.10"]
[Round "3"]
[White "Martynkova, Olena"]
[Black "Kusenkova, Natallia"]
[Result "0-1"]
[ECO "E06"]
[WhiteElo "2280"]
[BlackElo "2134"]
[Annotator "RC"]
[PlyCount "146"]
[EventDate "2018.??.??"]
[EventType "swiss"]
[EventCountry "SVK"]
[SourceTitle "playchess.com"]
[Source "ChessBase"]
[SourceQuality "1"]
[TimeControl "40/5400+30:1800+30"]

1. d4 {[%emt 0:00:00]} d5 {[%emt 0:00:07]} 2. Nf3 {[%emt 0:01:01]} Nf6 {[%emt 0:00:12]} 3. c4 {[%emt 0:00:34]} e6 {[%emt 0:00:12]} 4. g3 {[%emt 0:00:36]} Be7 {[%emt 0:00:29]} 5. Bg2 {[%emt 0:00:47]} O-O {[%emt 0:00:24]} 6. O-O {[%emt 0:00:28]} dxc4 {[%emt 0:00:23]} 7. Qc2 {[%emt 0:01:48]} a6 {[%emt 0:00:17]} 8. a4 {[%emt 0:00:47]} Bd7 {[%emt 0:00:26]} 9. Qxc4 {[%emt 0:04:46]} Bc6 {[%emt 0:00:22]} 10. Bg5 {[%emt 0:01:07]} Bd5 {[%emt 0:00:55]} 11. Qd3 {[%emt 0:02:00]} Be4 {[%emt 0:00:47]} 12. Qe3 {[%emt 0:05:06]} Bc6 {[%emt 0:00:52]} 13. Nc3 {[%emt 0:10:19]} Nbd7 {[%emt 0:00:32]} 14. Qd3 {[%emt 0:04:00]} Bb4 {[%emt 0:01:41]} 15. Rfe1 {[%emt 0:06:14]} h6 {[%emt 0:07:56]} 16. Bxf6 {[%emt 0:03:18]} Nxf6 {[%emt 0:00:21]} 17. e4 {[%emt 0:01:22]} b6 {[%emt 0:14:22]} 18. Ne5 {[%emt 0:07:37]} Bb7 {[%emt 0:00:27]} 19. Qc4 {[%emt 0:08:25]} c5 {[%emt 0:12:19]} 20. Rad1 {[%emt 0:04:57]} Qb8 {[%emt 0:11:55]} 21. Nd3 {[%emt 0:08:58]} cxd4 {[%emt 0:15:45]} 22. Nxb4 {[%emt 0:02:44]} dxc3 {[%emt 0:00:09]} 23. Qxc3 {[%emt 0:00:27]} Rc8 {[%emt 0:05:49]} 24. Qd4 {[%emt 0:03:21]} a5 {[%emt 0:02:45]} 25. Nd3 {[%emt 0:10:57]} Bc6 {[%emt 0:00:40]} 26. b3 {[%emt 0:03:52]} Rd8 {[%emt 0:02:17]} 27. Qc3 {[%emt 0:00:47]} Qb7 {[%emt 0:01:35]} 28. f3 {[%emt 0:04:35]} Rac8 {[%emt 0:00:13]} 29. Qb2 {[%emt 0:00:53]} b5 {[%emt 0:02:23]} 30. Nc5 {[%emt 0:01:18]} Qb6 {[%emt 0:01:23]} 31. Rxd8+ {[%emt 0:01:31]} Rxd8 {[%emt 0:00:48]} 32. Qf2 {[%emt 0:00:03]} bxa4 {[%emt 0:05:37]} 33. bxa4 {[%emt 0:00:39]} Qb4 {[%emt 0:00:48]} 34. Qe3 {[%emt 0:00:57]} Bxa4 {[%emt 0:03:25]} 35. Nxa4 {[%emt 0:00:32]} Qxa4 {[%emt 0:00:10]} 36. Qc3 {[%emt 0:00:37]} Qb5 {[%emt 0:03:58]} 37. Bf1 {[%emt 0:00:28]} Qb6+ {[%emt 0:00:36]} 38. Qe3 {[%emt 0:00:32]} Qb4 {[%emt 0:01:39]} 39. Rc1 {[%emt 0:00:27]} a4 {[%emt 0:03:18]} 40. Rc4 {[%emt 0:00:00]} Qa5 {[%emt 0:00:16]} 41. Rc5 {[%emt 0:06:22]} Qb6 {[%emt 0:04:13]} 42. Rc3 {[%emt 0:07:01]} Qxe3+ {[%emt 0:10:57]} 43. Rxe3 {[%emt 0:00:06]} Ra8 {[%emt 0:00:20]} 44. Ra3 {[%emt 0:02:37]} Nd7 {[%emt 0:00:38]} 45. Kf2 {[%emt 0:01:05]} Kf8 {[%emt 0:03:06]} 46. Ke3 {[%emt 0:01:36]} Ke7 {[%emt 0:00:55]} 47. Bb5 {[%emt 0:04:48]} Ra5 {[%emt 0:02:01]} 48. Bc4 {[%emt 0:04:09]} Kd6 {[%emt 0:03:40]} 49. Kd4 {[%emt 0:00:43]} Ne5 {[%emt 0:03:14]} 50. Be2 {[%emt 0:04:07]} Nc6+ {[%emt 0:00:07]} 51. Kc4 {[%emt 0:00:36]} Rc5+ {[%emt 0:01:06]} 52. Kd3 {[%emt 0:00:01]} Nb4+ {[%emt 0:00:46]} 53. Kd2 {[%emt 0:00:05]} Rc2+ {[%emt 0:01:44]} 54. Ke3 {[%emt 0:00:48]} Ra2 {[%emt 0:00:41]} 55. Rxa2 {[%emt 0:00:56]} Nxa2 {[%emt 0:00:05]} 56. Kd4 {[%emt 0:00:53]} Nc1 {[%emt 0:05:18]} 57. Bb5 {[%emt 0:01:39]} e5+ {[%emt 0:00:52]} 58. Kc3 {[%emt 0:00:28]} a3 {[%emt 0:00:25]} 59. Bc4 {[%emt 0:01:21]} f6 {[%emt 0:00:20]} 60. Kc2 {[%emt 0:01:12]} Kc5 {[%emt 0:00:47]} 61. Be6 {[%emt 0:00:29]} a2 {[%emt 0:00:15]} 62. Kb2 {[%emt 0:00:06]} Kd4 {[%emt 0:00:17]} 63. h4 {[%emt 0:00:51]} Ke3 {[%emt 0:00:20]} 64. Bg4 {[%emt 0:00:33]} Kf2 {[%emt 0:00:38]} 65. h5 {[%emt 0:00:29]} Kxg3 {[%emt 0:00:15]} 66. Ka1 {[%emt 0:00:13]} Kh4 {[%emt 0:00:19]} 67. Kb2 {[%emt 0:00:31]} Kg5 {[%emt 0:00:07]} 68. Ka1 {[%emt 0:00:08]} g6 {[%emt 0:01:13]} 69. hxg6 {[%emt 0:00:27]} Kxg6 {[%emt 0:00:05]} 70. Kb2 {[%emt 0:00:20]} Kg5 {[%emt 0:00:18]} 71. Ka1 {[%emt 0:00:07]} h5 {[%emt 0:00:34]} 72. Bh3 {[%emt 0:00:03]} Kf4 {[%emt 0:00:12]} 73. Bg2 {[%emt 0:00:09]} Kg3 {[%emt 0:00:12]} 0-1

[Event "EIWCC 2018"]
[Site "Vysoke Tatry"]
[Date "2018.04.10"]
[Round "3"]
[White "Kantane, Anna"]
[Black "Froewis, Annika"]
[Result "1-0"]
[ECO "C00"]
[WhiteElo "2266"]
[BlackElo "2113"]
[Annotator "NA"]
[PlyCount "95"]
[EventDate "2018.??.??"]
[EventType "swiss"]
[EventCountry "SVK"]
[SourceTitle "playchess.com"]
[Source "ChessBase"]
[SourceQuality "1"]
[TimeControl "40/5400+30:1800+30"]

1. e4 {[%emt 0:00:00]} e6 {[%emt 0:00:04]} 2. c4 {[%emt 0:04:24]} d5 {[%emt 0:00:16]} 3. cxd5 {[%emt 0:00:10]} exd5 {[%emt 0:00:07]} 4. exd5 {[%emt 0:00:06]} Qxd5 {[%emt 0:04:12]} 5. Nc3 {[%emt 0:00:44]} Qd8 {[%emt 0:06:04]} 6. d4 {[%emt 0:01:28]} c6 {[%emt 0:00:59]} 7. Bc4 {[%emt 0:21:12]} Bb4 {[%emt 0:06:21]} 8. Bxf7+ {[%emt 0:04:20]} Kxf7 {[%emt 0:02:43]} 9. Qb3+ {[%emt 0:00:13]} Be6 {[%emt 0:01:12]} 10. Qxb4 {[%emt 0:00:16]} Qe7 {[%emt 0:03:48]} 11. Qxe7+ {[%emt 0:00:38]} Nxe7 {[%emt 0:00:25]} 12. Nf3 {[%emt 0:03:23]} h6 {[%emt 0:02:08]} 13. Ne5+ {[%emt 0:02:04]} Kg8 {[%emt 0:00:37]} 14. O-O {[%emt 0:02:46]} Na6 {[%emt 0:04:36]} 15. Re1 {[%emt 0:06:21]} Re8 {[%emt 0:10:27]} 16. Ne4 {[%emt 0:17:04]} b6 {[%emt 0:10:59]} 17. a3 {[%emt 0:06:33]} Rd8 {[%emt 0:03:52]} 18. Be3 {[%emt 0:00:10]} Kh7 {[%emt 0:01:16]} 19. Rac1 {[%emt 0:03:00]} Bd5 {[%emt 0:04:13]} 20. Nc3 {[%emt 0:01:43]} Bb3 {[%emt 0:03:45]} 21. f3 {[%emt 0:04:20]} Rhe8 {[%emt 0:01:35]} 22. Ne4 {[%emt 0:02:37]} Bd5 {[%emt 0:01:48]} 23. Bf2 {[%emt 0:00:46]} Nc7 {[%emt 0:07:36]} 24. Bh4 {[%emt 0:03:05]} Ne6 {[%emt 0:08:29]} 25. Nc3 {[%emt 0:06:29]} g5 {[%emt 0:02:37]} 26. Bf2 {[%emt 0:00:10]} Nf5 {[%emt 0:05:28]} 27. Nxd5 {[%emt 0:04:19]} cxd5 {[%emt 0:00:16]} 28. Nc6 {[%emt 0:02:52]} Rc8 {[%emt 0:05:05]} 29. Nxa7 {[%emt 0:01:42]} Rxc1 {[%emt 0:00:11]} 30. Rxc1 {[%emt 0:00:02]} Nexd4 {[%emt 0:00:44]} 31. Rd1 {[%emt 0:00:35]} Ne2+ {[%emt 0:01:27]} 32. Kf1 {[%emt 0:00:07]} Nf4 {[%emt 0:01:42]} 33. g3 {[%emt 0:00:41]} Nh3 {[%emt 0:00:46]} 34. Rxd5 {[%emt 0:01:01]} Nxf2 {[%emt 0:00:51]} 35. Kxf2 {[%emt 0:00:11]} Ne3 {[%emt 0:00:22]} 36. Rd7+ {[%emt 0:00:30]} Kg8 {[%emt 0:00:39]} 37. Nb5 {[%emt 0:01:05]} Nc4 {[%emt 0:00:38]} 38. Nd6 {[%emt 0:01:02]} Ne5 {[%emt 0:00:36]} 39. Nxe8 {[%emt 0:00:29]} Nxd7 {[%emt 0:00:03]} 40. Ke3 {[%emt 0:00:00]} Kf7 {[%emt 0:00:29]} 41. Nc7 {[%emt 0:01:13]} Ne5 {[%emt 0:02:33]} 42. b3 {[%emt 0:06:04]} g4 {[%emt 0:02:14]} 43. fxg4 {[%emt 0:01:35]} Nxg4+ {[%emt 0:00:08]} 44. Kf4 {[%emt 0:00:15]} Nf6 {[%emt 0:01:34]} 45. Kf5 {[%emt 0:06:06]} h5 {[%emt 0:01:52]} 46. h3 {[%emt 0:04:02]} Nd7 {[%emt 0:02:00]} 47. Nd5 {[%emt 0:01:07]} b5 {[%emt 0:01:33]} 48. b4 {[%emt 0:01:29]} 1-0

[Event "EIWCC 2018"]
[Site "Vysoke Tatry"]
[Date "2018.04.10"]
[Round "3"]
[White "Ionescu, Irina"]
[Black "Szczepkowska, Karina"]
[Result "1/2-1/2"]
[ECO "A46"]
[WhiteElo "2247"]
[BlackElo "2403"]
[Annotator "ChessBase"]
[PlyCount "50"]
[EventDate "2018.??.??"]
[EventType "swiss"]
[EventCountry "SVK"]
[SourceTitle "playchess.com"]
[Source "ChessBase"]
[SourceQuality "1"]
[TimeControl "40/5400+30:1800+30"]

1. d4 {[%emt 0:00:00]} Nf6 {[%emt 0:00:11]} 2. Nf3 {[%emt 0:00:00]} e6 {[%emt 0:01:06]} 3. Bf4 {[%emt 0:00:31]} d5 {[%emt 0:04:57]} 4. e3 {[%emt 0:00:59]} c5 {[%emt 0:00:53]} 5. c3 {[%emt 0:00:21]} Nc6 {[%emt 0:01:01]} 6. h3 {[%emt 0:02:28]} Bd6 {[%emt 0:02:14]} 7. Bxd6 {[%emt 0:09:22]} Qxd6 {[%emt 0:00:09]} 8. Nbd2 {[%emt 0:00:24]} O-O {[%emt 0:09:29]} 9. Bd3 {[%emt 0:03:19]} e5 {[%emt 0:08:23]} 10. dxe5 {[%emt 0:00:21]} Nxe5 {[%emt 0:00:05]} 11. Nxe5 {[%emt 0:00:33]} Qxe5 {[%emt 0:00:05]} 12. O-O {[%emt 0:00:19]} Bd7 {[%emt 0:07:26]} 13. Qf3 {[%emt 0:12:51]} Bc6 {[%emt 0:05:55]} 14. Qf5 {[%emt 0:01:34]} Qxf5 {[%emt 0:02:15]} 15. Bxf5 {[%emt 0:00:07]} Rad8 {[%emt 0:02:10]} 16. Rfd1 {[%emt 0:06:16]} d4 {[%emt 0:04:48]} 17. exd4 {[%emt 0:03:07]} cxd4 {[%emt 0:00:07]} 18. cxd4 {[%emt 0:00:07]} Rxd4 {[%emt 0:00:06]} 19. Nb3 {[%emt 0:01:19]} Rd5 {[%emt 0:00:36]} 20. Rxd5 {[%emt 0:02:12]} Bxd5 {[%emt 0:01:26]} 21. Nd4 {[%emt 0:01:59]} g6 {[%emt 0:01:03]} 22. Bc2 {[%emt 0:01:03]} Rc8 {[%emt 0:01:54]} 23. Rd1 {[%emt 0:06:00]} a6 {[%emt 0:02:14]} 24. Bb3 {[%emt 0:00:59]} Bxb3 {[%emt 0:00:38]} 25. Nxb3 {[%emt 0:00:06]} Rc2 {[%emt 0:02:10]} 1/2-1/2

[Event "EIWCC 2018"]
[Site "Vysoke Tatry"]
[Date "2018.04.10"]
[Round "3"]
[White "Novosadova, Kristyna"]
[Black "Caglar, Sila"]
[Result "1/2-1/2"]
[ECO "E88"]
[WhiteElo "2240"]
[BlackElo "2077"]
[Annotator "NA"]
[PlyCount "60"]
[EventDate "2018.??.??"]
[EventType "swiss"]
[EventCountry "SVK"]
[SourceTitle "playchess.com"]
[Source "ChessBase"]
[SourceQuality "1"]
[TimeControl "40/5400+30:1800+30"]

1. d4 {[%emt 0:00:00]} Nf6 {[%emt 0:00:11]} 2. c4 {[%emt 0:00:00]} g6 {[%emt 0:00:30]} 3. Nc3 {[%emt 0:00:24]} Bg7 {[%emt 0:01:26]} 4. e4 {[%emt 0:00:53]} d6 {[%emt 0:00:08]} 5. f3 {[%emt 0:01:53]} O-O {[%emt 0:00:21]} 6. Be3 {[%emt 0:00:14]} e5 {[%emt 0:00:13]} 7. d5 {[%emt 0:00:42]} c6 {[%emt 0:00:11]} 8. Qd2 {[%emt 0:05:37]} a6 {[%emt 0:03:17]} 9. dxc6 {[%emt 0:06:39]} Nxc6 {[%emt 0:00:21]} 10. Rd1 {[%emt 0:15:39]} Qa5 {[%emt 0:03:18]} 11. Bd3 {[%emt 0:03:45]} Nh5 {[%emt 0:02:30]} 12. Nge2 {[%emt 0:01:15]} Be6 {[%emt 0:05:37]} 13. O-O {[%emt 0:06:07]} Rac8 {[%emt 0:07:17]} 14. b3 {[%emt 0:01:50]} Nf4 {[%emt 0:04:32]} 15. g3 {[%emt 0:11:25]} Nxe2+ {[%emt 0:06:36]} 16. Nxe2 {[%emt 0:00:36]} Qc7 {[%emt 0:05:43]} 17. Bb1 {[%emt 0:04:31]} Rcd8 {[%emt 0:01:12]} 18. Rc1 {[%emt 0:03:39]} f5 {[%emt 0:07:13]} 19. exf5 {[%emt 0:07:06]} gxf5 {[%emt 0:01:09]} 20. Nc3 {[%emt 0:04:52]} f4 {[%emt 0:16:56]} 21. Nd5 {[%emt 0:10:24]} fxe3 {[%emt 0:11:47]} 22. Qd3 {[%emt 0:00:13]} Bxd5 {[%emt 0:03:01]} 23. Qxh7+ {[%emt 0:01:30]} Kf7 {[%emt 0:00:02]} 24. cxd5 {[%emt 0:01:58]} e2 {[%emt 0:03:33]} 25. Rf2 {[%emt 0:05:08]} Qa5 {[%emt 0:06:13]} 26. Qg6+ {[%emt 0:02:25]} Kg8 {[%emt 0:00:13]} 27. Qh7+ {[%emt 0:02:30]} Kf7 {[%emt 0:00:09]} 28. Qg6+ {[%emt 0:01:59]} Kg8 29. Qe6+ Rf7 30. Rxe2 Nd4 1/2-1/2

[Event "EIWCC 2018"]
[Site "Vysoke Tatry"]
[Date "2018.04.10"]
[Round "3"]
[White "Maltsevskaya, Aleksandra"]
[Black "Voit, Daria"]
[Result "1-0"]
[ECO "C00"]
[WhiteElo "2237"]
[BlackElo "2388"]
[Annotator "NA"]
[PlyCount "69"]
[EventDate "2018.??.??"]
[EventType "swiss"]
[EventCountry "SVK"]
[SourceTitle "playchess.com"]
[Source "ChessBase"]
[SourceQuality "1"]
[TimeControl "40/5400+30:1800+30"]

1. e4 {[%emt 0:00:00]} e6 {[%emt 0:00:06]} 2. d3 {[%emt 0:02:32]} d5 {[%emt 0:02:13]} 3. Nd2 {[%emt 0:00:07]} c5 {[%emt 0:00:07]} 4. Ngf3 {[%emt 0:00:06]} Nc6 {[%emt 0:00:24]} 5. c3 {[%emt 0:00:11]} Nf6 {[%emt 0:00:39]} 6. g3 {[%emt 0:00:08]} Be7 {[%emt 0:05:44]} 7. Bg2 {[%emt 0:00:09]} O-O {[%emt 0:00:04]} 8. O-O {[%emt 0:00:10]} Qc7 {[%emt 0:00:06]} 9. Re1 {[%emt 0:00:10]} b5 {[%emt 0:07:07]} 10. Nf1 {[%emt 0:01:55]} Bb7 {[%emt 0:16:53]} 11. e5 {[%emt 0:24:40]} Nd7 {[%emt 0:00:05]} 12. d4 {[%emt 0:02:04]} b4 {[%emt 0:02:46]} 13. h4 {[%emt 0:00:31]} Rfc8 {[%emt 0:05:37]} 14. Ng5 {[%emt 0:09:02]} h6 {[%emt 0:07:01]} 15. Nh3 {[%emt 0:01:35]} bxc3 {[%emt 0:10:11]} 16. bxc3 {[%emt 0:00:12]} cxd4 {[%emt 0:00:10]} 17. cxd4 {[%emt 0:00:06]} Bb4 {[%emt 0:01:01]} 18. Re3 {[%emt 0:13:19]} Ne7 {[%emt 0:08:03]} 19. Rb3 {[%emt 0:09:13]} Ba5 {[%emt 0:01:46]} 20. Ba3 {[%emt 0:07:18]} Nb6 {[%emt 0:00:53]} 21. Rc1 {[%emt 0:01:14]} Qd7 {[%emt 0:00:32]} 22. Bc5 {[%emt 0:02:09]} Nc4 {[%emt 0:08:06]} 23. Rxc4 {[%emt 0:03:04]} dxc4 {[%emt 0:03:28]} 24. Rxb7 {[%emt 0:00:06]} Bc7 {[%emt 0:00:19]} 25. Ne3 {[%emt 0:04:49]} Rcb8 {[%emt 0:06:45]} 26. Nxc4 {[%emt 0:01:28]} Rxb7 {[%emt 0:01:26]} 27. Bxb7 {[%emt 0:00:07]} Rb8 {[%emt 0:00:02]} 28. Be4 {[%emt 0:00:28]} Nd5 {[%emt 0:01:07]} 29. Bc2 {[%emt 0:01:08]} Qb5 {[%emt 0:00:39]} 30. Qd3 {[%emt 0:01:05]} g6 {[%emt 0:00:11]} 31. h5 {[%emt 0:00:44]} Nb4 {[%emt 0:02:18]} 32. Bxb4 {[%emt 0:00:24]} Qxb4 {[%emt 0:00:03]} 33. hxg6 {[%emt 0:00:09]} Qf8 {[%emt 0:01:23]} 34. gxf7+ {[%emt 0:00:06]} Qxf7 {[%emt 0:00:02]} 35. Nf4 {[%emt 0:00:15]} 1-0

[Event "EIWCC 2018"]
[Site "Vysoke Tatry"]
[Date "2018.04.10"]
[Round "3"]
[White "Solozhenkina, Elizaveta"]
[Black "Ferkova, Dominika"]
[Result "1-0"]
[ECO "B18"]
[WhiteElo "2236"]
[BlackElo "2068"]
[Annotator "NA"]
[PlyCount "45"]
[EventDate "2018.??.??"]
[EventType "swiss"]
[EventCountry "SVK"]
[SourceTitle "playchess.com"]
[Source "ChessBase"]
[SourceQuality "1"]
[TimeControl "40/5400+30:1800+30"]

1. e4 {[%emt 0:00:00]} c6 {[%emt 0:00:04]} 2. d4 {[%emt 0:00:00]} d5 {[%emt 0:00:05]} 3. Nc3 {[%emt 0:00:00]} dxe4 {[%emt 0:00:05]} 4. Nxe4 {[%emt 0:00:00]} Bf5 {[%emt 0:00:06]} 5. Ng3 {[%emt 0:00:00]} Bg6 {[%emt 0:00:05]} 6. Nh3 {[%emt 0:00:00]} h6 {[%emt 0:03:50]} 7. Bc4 {[%emt 0:00:24]} e6 {[%emt 0:03:31]} 8. Nf4 {[%emt 0:01:05]} Bh7 {[%emt 0:00:16]} 9. O-O {[%emt 0:00:07]} Nf6 {[%emt 0:18:25]} 10. Re1 {[%emt 0:00:22]} Be7 {[%emt 0:10:19]} 11. Bxe6 {[%emt 0:06:08]} O-O {[%emt 0:00:24]} 12. Bf5 {[%emt 0:09:16]} Nd5 {[%emt 0:17:36]} 13. c3 {[%emt 0:15:34]} Bd6 {[%emt 0:10:34]} 14. Nxd5 {[%emt 0:02:46]} cxd5 {[%emt 0:00:10]} 15. Bxh7+ {[%emt 0:10:05]} Kxh7 {[%emt 0:00:06]} 16. Qd3+ {[%emt 0:00:09]} Kg8 {[%emt 0:01:19]} 17. Nf5 {[%emt 0:02:45]} Nc6 {[%emt 0:03:07]} 18. Qf3 {[%emt 0:05:14]} Kh8 {[%emt 0:06:47]} 19. Bd2 {[%emt 0:05:30]} Bc7 {[%emt 0:05:21]} 20. Re3 {[%emt 0:04:23]} Qd7 {[%emt 0:03:04]} 21. Qg4 {[%emt 0:03:01]} g6 {[%emt 0:02:32]} 22. Qh4 {[%emt 0:07:18]} h5 {[%emt 0:03:41]} 23. Qf6+ {[%emt 0:00:09]} 1-0

[Event "EIWCC 2018"]
[Site "Vysoke Tatry"]
[Date "2018.04.10"]
[Round "3"]
[White "Gevorgyan, Maria"]
[Black "Arakhamia-Grant, Ketevan"]
[Result "0-1"]
[ECO "B01"]
[WhiteElo "2226"]
[BlackElo "2347"]
[Annotator "NA"]
[PlyCount "78"]
[EventDate "2018.??.??"]
[EventType "swiss"]
[EventCountry "SVK"]
[SourceTitle "playchess.com"]
[Source "ChessBase"]
[SourceQuality "1"]
[TimeControl "40/5400+30:1800+30"]

1. e4 {[%emt 0:00:00]} d5 {[%emt 0:00:07]} 2. exd5 {[%emt 0:00:00]} Qxd5 {[%emt 0:00:05]} 3. Nc3 {[%emt 0:00:11]} Qa5 {[%emt 0:00:05]} 4. d4 {[%emt 0:00:11]} Nf6 {[%emt 0:00:07]} 5. Nf3 {[%emt 0:01:31]} Bf5 {[%emt 0:00:09]} 6. Bd2 {[%emt 0:02:50]} e6 {[%emt 0:00:28]} 7. Ne5 {[%emt 0:02:24]} Qb6 {[%emt 0:00:55]} 8. Qf3 {[%emt 0:27:07]} c6 {[%emt 0:00:29]} 9. O-O-O {[%emt 0:01:50]} Nbd7 {[%emt 0:00:36]} 10. Nc4 {[%emt 0:03:23]} Qd8 {[%emt 0:00:44]} 11. h3 {[%emt 0:00:41]} b5 {[%emt 0:24:23]} 12. Ne3 {[%emt 0:01:25]} b4 {[%emt 0:26:55]} 13. Nxf5 {[%emt 0:04:33]} bxc3 {[%emt 0:00:37]} 14. Bxc3 {[%emt 0:00:51]} exf5 {[%emt 0:00:08]} 15. Qxc6 {[%emt 0:01:11]} Be7 {[%emt 0:08:16]} 16. d5 {[%emt 0:19:38]} Ne4 {[%emt 0:00:50]} 17. Bxg7 {[%emt 0:03:34]} Rg8 {[%emt 0:00:18]} 18. Bd4 {[%emt 0:01:17]} Rg6 {[%emt 0:00:40]} 19. Qa4 {[%emt 0:04:01]} Kf8 {[%emt 0:00:13]} 20. Bb5 {[%emt 0:05:05]} Nb6 {[%emt 0:05:50]} 21. Qa5 {[%emt 0:01:08]} Nxd5 {[%emt 0:06:41]} 22. Qe1 {[%emt 0:03:47]} Rb8 {[%emt 0:10:07]} 23. c4 {[%emt 0:05:16]} Qc7 {[%emt 0:00:57]} 24. Kb1 {[%emt 0:01:48]} Nb4 {[%emt 0:04:25]} 25. a3 {[%emt 0:04:07]} Nc6 {[%emt 0:00:53]} 26. Bxc6 {[%emt 0:03:00]} Qxc6 {[%emt 0:00:18]} 27. Qa5 {[%emt 0:00:12]} Bf6 {[%emt 0:02:10]} 28. Qxa7 {[%emt 0:01:24]} Ra8 {[%emt 0:01:56]} 29. Qb6 {[%emt 0:00:35]} Qxb6 {[%emt 0:01:44]} 30. Bxb6 {[%emt 0:00:02]} Bxb2 {[%emt 0:00:17]} 31. Kxb2 {[%emt 0:01:07]} Rxb6+ {[%emt 0:00:05]} 32. Kc2 {[%emt 0:00:09]} Rxa3 {[%emt 0:01:25]} 33. Ra1 {[%emt 0:01:24]} Rc3+ {[%emt 0:00:41]} 34. Kd1 {[%emt 0:00:01]} Nxf2+ {[%emt 0:00:43]} 35. Kd2 {[%emt 0:00:01]} Ne4+ {[%emt 0:00:14]} 36. Ke1 {[%emt 0:00:08]} Rb2 {[%emt 0:00:47]} 37. Rf1 {[%emt 0:00:55]} Rxg2 {[%emt 0:02:16]} 38. Rxf5 {[%emt 0:00:33]} Rg1+ {[%emt 0:00:29]} 39. Rf1 {[%emt 0:00:13]} Re3+ {[%emt 0:00:07]} 0-1

[Event "EIWCC 2018"]
[Site "Vysoke Tatry"]
[Date "2018.04.10"]
[Round "3"]
[White "Kubicka, Anna"]
[Black "Cosma, Elena-Luminita"]
[Result "1/2-1/2"]
[ECO "C09"]
[WhiteElo "2215"]
[BlackElo "2340"]
[Annotator "NA"]
[PlyCount "62"]
[EventDate "2018.??.??"]
[EventType "swiss"]
[EventCountry "SVK"]
[SourceTitle "playchess.com"]
[Source "ChessBase"]
[SourceQuality "1"]
[TimeControl "40/5400+30:1800+30"]

1. e4 {[%emt 0:00:00]} e6 {[%emt 0:00:07]} 2. d4 {[%emt 0:00:00]} d5 {[%emt 0:00:06]} 3. Nd2 {[%emt 0:00:00]} c5 {[%emt 0:00:18]} 4. exd5 {[%emt 0:00:03]} exd5 {[%emt 0:00:08]} 5. Ngf3 {[%emt 0:00:11]} Nc6 {[%emt 0:00:14]} 6. Bb5 {[%emt 0:00:17]} cxd4 {[%emt 0:00:46]} 7. O-O {[%emt 0:00:15]} Bd6 {[%emt 0:00:12]} 8. Nb3 {[%emt 0:00:14]} Nge7 {[%emt 0:00:19]} 9. Nbxd4 {[%emt 0:00:22]} O-O {[%emt 0:00:35]} 10. Be3 {[%emt 0:00:29]} Bg4 {[%emt 0:13:13]} 11. Be2 {[%emt 0:00:26]} Bh5 {[%emt 0:05:35]} 12. c3 {[%emt 0:00:53]} Bg6 {[%emt 0:06:10]} 13. Bd3 {[%emt 0:00:26]} a6 {[%emt 0:06:19]} 14. Qd2 {[%emt 0:03:04]} Qc7 {[%emt 0:00:28]} 15. h3 {[%emt 0:04:29]} Na5 {[%emt 0:02:45]} 16. Bxg6 {[%emt 0:05:02]} hxg6 {[%emt 0:02:37]} 17. Qc2 {[%emt 0:04:43]} Nc4 {[%emt 0:01:10]} 18. Bg5 {[%emt 0:01:53]} Rfe8 {[%emt 0:01:20]} 19. Rad1 {[%emt 0:01:06]} b5 {[%emt 0:02:05]} 20. Nd2 {[%emt 0:10:16]} Rac8 {[%emt 0:14:17]} 21. Nxc4 {[%emt 0:01:34]} dxc4 {[%emt 0:06:24]} 22. Bxe7 {[%emt 0:00:32]} Rxe7 {[%emt 0:01:01]} 23. a4 {[%emt 0:00:16]} Rb8 {[%emt 0:07:53]} 24. axb5 {[%emt 0:00:30]} axb5 {[%emt 0:00:06]} 25. Rfe1 {[%emt 0:01:17]} Be5 {[%emt 0:04:36]} 26. Nf3 {[%emt 0:09:36]} Bf6 {[%emt 0:05:54]} 27. Rxe7 {[%emt 0:00:16]} Qxe7 {[%emt 0:00:07]} 28. Re1 {[%emt 0:04:40]} Qc5 {[%emt 0:03:44]} 29. Nd2 {[%emt 0:04:26]} Qf5 {[%emt 0:02:28]} 30. Ne4 {[%emt 0:02:47]} Rd8 {[%emt 0:03:46]} 31. Nxf6+ {[%emt 0:04:23]} Qxf6 {[%emt 0:00:05]} 1/2-1/2